[Event "*** Titled Tuesday Blitz"]
[Site "Chess.com"]
[Date "2018.11.06"]
[Round "2"]
[White "hypert"]
[Black "51616516516"]
[Result "1/2-1/2"]
[WhiteElo "2348"]
[BlackElo "2247"]
[TimeControl "180+2"]
[EndTime "13:22:35 PST"]
[Termination "Game drawn - insufficient material"]

1. Nf3 {[%clk 0:03:01.9]} 1... Nf6 {[%clk 0:02:57.5]} 2. g3 {[%clk 0:03:03.4]}
2... g6 {[%clk 0:02:55.4]} 3. Bg2 {[%clk 0:03:04.9]} 3... Bg7 {[%clk 0:02:56.8]}
4. O-O {[%clk 0:03:06.5]} 4... O-O {[%clk 0:02:58]} 5. d4 {[%clk 0:03:07.9]}
5... d6 {[%clk 0:02:58.5]} 6. a4 {[%clk 0:03:08.9]} 6... Nc6 {[%clk 0:02:58.9]}
7. a5 {[%clk 0:03:09.3]} 7... a6 {[%clk 0:03:00.4]} 8. d5 {[%clk 0:03:08.6]}
8... Nb8 {[%clk 0:02:56.7]} 9. c4 {[%clk 0:03:09.3]} 9... e6 {[%clk 0:02:57.2]}
10. Nc3 {[%clk 0:03:09.6]} 10... exd5 {[%clk 0:02:57.7]} 11. cxd5 {[%clk
0:03:11.5]} 11... Bf5 {[%clk 0:02:56.1]} 12. Nd4 {[%clk 0:02:59]} 12... Bg4
{[%clk 0:02:53.4]} 13. h3 {[%clk 0:02:55.6]} 13... Bd7 {[%clk 0:02:53.1]} 14. e4
{[%clk 0:02:53.5]} 14... Re8 {[%clk 0:02:46.5]} 15. Be3 {[%clk 0:02:50.9]} 15...
c5 {[%clk 0:02:46.5]} 16. Nde2 {[%clk 0:02:41.4]} 16... Bb5 {[%clk 0:02:43.2]}
17. Re1 {[%clk 0:02:30.6]} 17... Bxe2 {[%clk 0:02:42.5]} 18. Rxe2 {[%clk
0:02:28.9]} 18... Nbd7 {[%clk 0:02:42.5]} 19. f4 {[%clk 0:02:01.2]} 19... c4
{[%clk 0:02:26.8]} 20. Bf2 {[%clk 0:01:56.4]} 20... Qc7 {[%clk 0:02:21.2]} 21.
g4 {[%clk 0:01:26.6]} 21... Nc5 {[%clk 0:02:19.9]} 22. e5 {[%clk 0:01:21.1]}
22... Nfd7 {[%clk 0:02:05.5]} 23. e6 {[%clk 0:01:01]} 23... Nf6 {[%clk
0:01:41.6]} 24. g5 {[%clk 0:00:58.4]} 24... Nh5 {[%clk 0:01:38.5]} 25. f5 {[%clk
0:00:59.6]} 25... gxf5 {[%clk 0:01:00.8]} 26. exf7+ {[%clk 0:00:38.9]} 26...
Qxf7 {[%clk 0:00:59.7]} 27. Rxe8+ {[%clk 0:00:40]} 27... Rxe8 {[%clk 0:01:00]}
28. Bxc5 {[%clk 0:00:39.9]} 28... dxc5 {[%clk 0:01:00.8]} 29. d6 {[%clk
0:00:41.6]} 29... Nf4 {[%clk 0:01:00.7]} 30. Qf3 {[%clk 0:00:37.8]} 30... Bd4+
{[%clk 0:01:00.1]} 31. Kh1 {[%clk 0:00:39.3]} 31... Nxg2 {[%clk 0:00:53]} 32.
Kxg2 {[%clk 0:00:41.2]} 32... Re3 {[%clk 0:00:51.1]} 33. Qf4 {[%clk 0:00:37.6]}
33... Re6 {[%clk 0:00:15.5]} 34. Rf1 {[%clk 0:00:37.5]} 34... Be5 {[%clk
0:00:10.3]} 35. Qxf5 {[%clk 0:00:37.5]} 35... Qxf5 {[%clk 0:00:09.9]} 36. Rxf5
{[%clk 0:00:39.4]} 36... Bxc3 {[%clk 0:00:10.1]} 37. bxc3 {[%clk 0:00:39.7]}
37... Rxd6 {[%clk 0:00:12]} 38. Rxc5 {[%clk 0:00:40.7]} 38... Rd2+ {[%clk
0:00:12.8]} 39. Kg3 {[%clk 0:00:41.4]} 39... Rd3+ {[%clk 0:00:14]} 40. Kg4
{[%clk 0:00:42.9]} 40... Rxc3 {[%clk 0:00:15.9]} 41. h4 {[%clk 0:00:43.9]} 41...
Ra3 {[%clk 0:00:14.2]} 42. Rxc4 {[%clk 0:00:43.4]} 42... Rxa5 {[%clk 0:00:15.2]}
43. Rc8+ {[%clk 0:00:45]} 43... Kg7 {[%clk 0:00:15.4]} 44. Rc7+ {[%clk
0:00:46.6]} 44... Kg8 {[%clk 0:00:16.5]} 45. Rxb7 {[%clk 0:00:47.8]} 45... Ra4+
{[%clk 0:00:14.8]} 46. Kf5 {[%clk 0:00:49]} 46... Rxh4 {[%clk 0:00:14.8]} 47.
Kf6 {[%clk 0:00:50.2]} 47... Rf4+ {[%clk 0:00:15.7]} 48. Ke5 {[%clk 0:00:51.5]}
48... Rf7 {[%clk 0:00:15.2]} 49. Rb6 {[%clk 0:00:49.8]} 49... Ra7 {[%clk
0:00:15.6]} 50. Kf6 {[%clk 0:00:50.8]} 50... Ra8 {[%clk 0:00:14.8]} 51. g6
{[%clk 0:00:49.2]} 51... hxg6 {[%clk 0:00:15]} 52. Kxg6 {[%clk 0:00:49.5]} 52...
a5 {[%clk 0:00:16.4]} 53. Rb3 {[%clk 0:00:49.3]} 53... a4 {[%clk 0:00:16.3]} 54.
Ra3 {[%clk 0:00:50.8]} 54... Kf8 {[%clk 0:00:09.9]} 55. Kf6 {[%clk 0:00:51.4]}
55... Ke8 {[%clk 0:00:07.5]} 56. Ke6 {[%clk 0:00:52.3]} 56... Ra6+ {[%clk
0:00:06.9]} 57. Kd5 {[%clk 0:00:53.1]} 57... Kd7 {[%clk 0:00:08.1]} 58. Kc5
{[%clk 0:00:54]} 58... Kc7 {[%clk 0:00:07.8]} 59. Kb5 {[%clk 0:00:55]} 59... Kb7
{[%clk 0:00:09]} 60. Rxa4 {[%clk 0:00:54.6]} 60... Rxa4 {[%clk 0:00:10.9]} 61.
Kxa4 {[%clk 0:00:55.6]} 1/2-1/2

[Event "*** Titled Tuesday Blitz"]
[Site "Chess.com"]
[Date "2018.11.06"]
[Round "2"]
[White "suyu28"]
[Black "AlexTriapishko"]
[Result "0-1"]
[WhiteElo "2527"]
[BlackElo "2764"]
[TimeControl "180+2"]
[EndTime "13:22:38 PST"]
[Termination "AlexTriapishko won on time"]

1. e4 {[%clk 0:02:59.3]} 1... c5 {[%clk 0:02:59.8]} 2. Nc3 {[%clk 0:02:50.8]}
2... d6 {[%clk 0:02:58.4]} 3. d4 {[%clk 0:02:49.3]} 3... cxd4 {[%clk 0:02:54]}
4. Qxd4 {[%clk 0:02:50.5]} 4... Nc6 {[%clk 0:02:55.6]} 5. Qd2 {[%clk 0:02:51.3]}
5... Nf6 {[%clk 0:02:48.9]} 6. b3 {[%clk 0:02:50.7]} 6... g6 {[%clk 0:02:50.4]}
7. Bb2 {[%clk 0:02:51.1]} 7... Bg7 {[%clk 0:02:51.7]} 8. O-O-O {[%clk
0:02:51.4]} 8... O-O {[%clk 0:02:53.2]} 9. f4 {[%clk 0:02:47.5]} 9... Bg4 {[%clk
0:02:40.9]} 10. Nf3 {[%clk 0:02:46.8]} 10... Bxf3 {[%clk 0:02:31.9]} 11. gxf3
{[%clk 0:02:46.6]} 11... Qa5 {[%clk 0:02:33.4]} 12. Kb1 {[%clk 0:02:46.4]} 12...
Rac8 {[%clk 0:02:24.6]} 13. h4 {[%clk 0:02:39.1]} 13... Nh5 {[%clk 0:02:11]} 14.
f5 {[%clk 0:01:59.3]} 14... Nb4 {[%clk 0:01:48.8]} 15. a3 {[%clk 0:01:57.9]}
15... Nc6 {[%clk 0:01:29]} 16. Bc4 {[%clk 0:01:44.6]} 16... Qe5 {[%clk
0:01:08.2]} 17. Rhg1 {[%clk 0:01:30.4]} 17... Na5 {[%clk 0:00:56.7]} 18. fxg6
{[%clk 0:01:22.5]} 18... Nxc4 {[%clk 0:00:49.7]} 19. gxh7+ {[%clk 0:01:22.4]}
19... Kh8 {[%clk 0:00:45.8]} 20. bxc4 {[%clk 0:01:23.9]} 20... Rxc4 {[%clk
0:00:16.6]} 21. Rg5 {[%clk 0:01:22.6]} 21... Qf4 {[%clk 0:00:18.1]} 22. Rxg7
{[%clk 0:00:53]} 22... Qxd2 {[%clk 0:00:13.5]} 23. Rg8+ {[%clk 0:00:52.9]} 23...
Kxh7 {[%clk 0:00:14.3]} 24. Rg5 {[%clk 0:00:37.3]} 24... Qxg5 {[%clk 0:00:13.4]}
25. hxg5 {[%clk 0:00:38.1]} 25... Nf4 {[%clk 0:00:12]} 26. Nb5 {[%clk
0:00:33.2]} 26... Kg6 {[%clk 0:00:10.1]} 27. Bc1 {[%clk 0:00:32.2]} 27... Ne6
{[%clk 0:00:07.9]} 28. f4 {[%clk 0:00:31.8]} 28... Rxe4 {[%clk 0:00:08.5]} 29.
Nc3 {[%clk 0:00:27.4]} 29... Rc4 {[%clk 0:00:09]} 30. Nd5 {[%clk 0:00:28]} 30...
Rc5 {[%clk 0:00:08.8]} 31. Nxe7+ {[%clk 0:00:27]} 31... Kh5 {[%clk 0:00:08.5]}
32. Nd5 {[%clk 0:00:16.7]} 32... Rb5+ {[%clk 0:00:09.2]} 33. Ka2 {[%clk
0:00:17.1]} 33... Rc8 {[%clk 0:00:10.2]} 34. Rh1+ {[%clk 0:00:05.5]} 34... Kg4
{[%clk 0:00:09.9]} 35. c3 {[%clk 0:00:05.6]} 35... Rxd5 {[%clk 0:00:10.1]} 36.
Kb3 {[%clk 0:00:06.3]} 36... Kf5 {[%clk 0:00:10.9]} 37. Rh6 {[%clk 0:00:06.3]}
37... Rb5+ {[%clk 0:00:11.6]} 38. Kc2 {[%clk 0:00:07.2]} 38... Rbc5 {[%clk
0:00:10.2]} 39. Bd2 {[%clk 0:00:07.4]} 39... Ke4 {[%clk 0:00:10.9]} 40. Rf6
{[%clk 0:00:07.9]} 40... R8c7 {[%clk 0:00:11.9]} 41. g6 {[%clk 0:00:08.4]} 41...
Nd4+ {[%clk 0:00:12.2]} 42. Kd1 {[%clk 0:00:08.9]} 42... fxg6 {[%clk 0:00:12.6]}
43. cxd4 {[%clk 0:00:09.6]} 43... Rd5 {[%clk 0:00:13.8]} 44. Re6+ {[%clk
0:00:07.8]} 44... Kd3 {[%clk 0:00:14.4]} 45. Rxg6 {[%clk 0:00:05.4]} 45... Rh7
{[%clk 0:00:15.2]} 46. Rg3+ {[%clk 0:00:06.1]} 46... Kxd4 {[%clk 0:00:16.6]} 47.
Kc2 {[%clk 0:00:03.2]} 47... Rh2 {[%clk 0:00:17]} 0-1

[Event "*** Titled Tuesday Blitz"]
[Site "Chess.com"]
[Date "2018.11.06"]
[Round "2"]
[White "Bykov_Egor"]
[Black "Vuk2000"]
[Result "1-0"]
[WhiteElo "2537"]
[BlackElo "2694"]
[TimeControl "180+2"]
[EndTime "13:22:40 PST"]
[Termination "Bykov_Egor won by checkmate"]

1. d4 {[%clk 0:03:00.2]} 1... e6 {[%clk 0:03:01.1]} 2. c4 {[%clk 0:03:01.4]}
2... Nf6 {[%clk 0:03:02.5]} 3. Nf3 {[%clk 0:03:02.2]} 3... b6 {[%clk 0:03:03.2]}
4. g3 {[%clk 0:03:03.2]} 4... Ba6 {[%clk 0:03:04.1]} 5. b3 {[%clk 0:03:04.3]}
5... Bb4+ {[%clk 0:03:04.7]} 6. Bd2 {[%clk 0:03:05.2]} 6... Be7 {[%clk
0:03:05.8]} 7. Bg2 {[%clk 0:03:06.6]} 7... c6 {[%clk 0:03:07]} 8. Bc3 {[%clk
0:03:07.8]} 8... d5 {[%clk 0:03:07.9]} 9. Nbd2 {[%clk 0:03:09.1]} 9... Nbd7
{[%clk 0:03:06.5]} 10. e4 {[%clk 0:03:03.5]} 10... O-O {[%clk 0:02:42.5]} 11. e5
{[%clk 0:02:58.2]} 11... Ne8 {[%clk 0:02:43.4]} 12. O-O {[%clk 0:02:59]} 12...
b5 {[%clk 0:02:41]} 13. c5 {[%clk 0:02:55]} 13... b4 {[%clk 0:02:41]} 14. Bxb4
{[%clk 0:02:52.2]} 14... Bxf1 {[%clk 0:02:41.7]} 15. Bxf1 {[%clk 0:02:52.2]}
15... f6 {[%clk 0:02:29.2]} 16. Bh3 {[%clk 0:02:42]} 16... f5 {[%clk 0:01:59.5]}
17. Ne1 {[%clk 0:02:35.6]} 17... g5 {[%clk 0:01:42.7]} 18. Nd3 {[%clk 0:02:36]}
18... Ng7 {[%clk 0:01:41.5]} 19. Bc3 {[%clk 0:02:26.5]} 19... a5 {[%clk
0:01:29.8]} 20. Qe2 {[%clk 0:02:15.1]} 20... Re8 {[%clk 0:01:26.2]} 21. b4
{[%clk 0:02:07.8]} 21... axb4 {[%clk 0:01:25.2]} 22. Nxb4 {[%clk 0:02:08.9]}
22... Qc7 {[%clk 0:01:22.4]} 23. Nb3 {[%clk 0:02:05]} 23... Ra4 {[%clk
0:01:07.6]} 24. Bf1 {[%clk 0:01:48.7]} 24... Rea8 {[%clk 0:01:07.2]} 25. Qb2
{[%clk 0:01:35.5]} 25... Nf8 {[%clk 0:00:37.2]} 26. Nd3 {[%clk 0:01:35.1]} 26...
Qa7 {[%clk 0:00:33.7]} 27. Nb4 {[%clk 0:01:31.4]} 27... Qb7 {[%clk 0:00:34.9]}
28. a3 {[%clk 0:01:18.1]} 28... Ng6 {[%clk 0:00:34.5]} 29. Nd3 {[%clk
0:01:17.7]} 29... Rb8 {[%clk 0:00:33.5]} 30. Bb4 {[%clk 0:01:16.2]} 30... Rba8
{[%clk 0:00:32.6]} 31. Qc3 {[%clk 0:01:09.4]} 31... f4 {[%clk 0:00:31.2]} 32. g4
{[%clk 0:01:06.3]} 32... h5 {[%clk 0:00:31.4]} 33. h3 {[%clk 0:01:06.1]} 33...
f3 {[%clk 0:00:27.2]} 34. Nb2 {[%clk 0:01:03.5]} 34... R4a7 {[%clk 0:00:18.9]}
35. Qxf3 {[%clk 0:00:50.8]} 35... Rf8 {[%clk 0:00:20]} 36. Qg3 {[%clk
0:00:47.6]} 36... Nh4 {[%clk 0:00:21.2]} 37. Be2 {[%clk 0:00:34.2]} 37... hxg4
{[%clk 0:00:20.7]} 38. hxg4 {[%clk 0:00:34.5]} 38... Qc8 {[%clk 0:00:16.1]} 39.
a4 {[%clk 0:00:31]} 39... Ng6 {[%clk 0:00:14.2]} 40. a5 {[%clk 0:00:28.6]} 40...
Nf4 {[%clk 0:00:15.4]} 41. Bf1 {[%clk 0:00:28.6]} 41... Ne8 {[%clk 0:00:14.9]}
42. Nd3 {[%clk 0:00:26]} 42... Nc7 {[%clk 0:00:15.5]} 43. Nxf4 {[%clk
0:00:25.4]} 43... gxf4 {[%clk 0:00:16]} 44. Qd3 {[%clk 0:00:24.8]} 44... Na6
{[%clk 0:00:15.7]} 45. Qg6+ {[%clk 0:00:24.1]} 45... Kh8 {[%clk 0:00:16.9]} 46.
Qh6+ {[%clk 0:00:21.4]} 46... Kg8 {[%clk 0:00:18.3]} 47. Qg6+ {[%clk 0:00:22.9]}
47... Kh8 {[%clk 0:00:19.3]} 48. Qh6+ {[%clk 0:00:22.9]} 48... Kg8 {[%clk
0:00:20.2]} 49. Bd3 {[%clk 0:00:23.5]} 49... Rf7 {[%clk 0:00:19.4]} 50. Bd2
{[%clk 0:00:22.8]} 50... Rg7 {[%clk 0:00:18.9]} 51. Kg2 {[%clk 0:00:22.9]} 51...
Bg5 {[%clk 0:00:19.3]} 52. Qh5 {[%clk 0:00:23]} 52... f3+ {[%clk 0:00:19.2]} 53.
Kxf3 {[%clk 0:00:22.9]} 53... Qb8 {[%clk 0:00:10.2]} 54. Rh1 {[%clk 0:00:19.4]}
54... Qxb3 {[%clk 0:00:10.6]} 55. Qe8# {[%clk 0:00:16.4]} 1-0

[Event "*** Titled Tuesday Blitz"]
[Site "Chess.com"]
[Date "2018.11.06"]
[Round "2"]
[White "PeshkaNavalnogo12"]
[Black "saraswathii"]
[Result "1/2-1/2"]
[WhiteElo "2466"]
[BlackElo "2301"]
[TimeControl "180+2"]
[EndTime "13:22:46 PST"]
[Termination "Game drawn - insufficient material"]

1. c4 {[%clk 0:03:01.9]} 1... Nc6 {[%clk 0:03:00.3]} 2. Nc3 {[%clk 0:03:02.5]}
2... Nf6 {[%clk 0:03:00.8]} 3. g3 {[%clk 0:03:04.4]} 3... g6 {[%clk 0:02:59.9]}
4. Bg2 {[%clk 0:03:04.7]} 4... Bg7 {[%clk 0:02:51.7]} 5. e4 {[%clk 0:03:05.4]}
5... d6 {[%clk 0:02:52.4]} 6. Nge2 {[%clk 0:03:06.5]} 6... e5 {[%clk 0:02:51.1]}
7. O-O {[%clk 0:03:07.4]} 7... O-O {[%clk 0:02:48.1]} 8. f4 {[%clk 0:03:08.6]}
8... exf4 {[%clk 0:02:44.2]} 9. gxf4 {[%clk 0:03:09.2]} 9... Nh5 {[%clk
0:02:42.4]} 10. d4 {[%clk 0:03:07.8]} 10... Qh4 {[%clk 0:02:30.2]} 11. Qd3
{[%clk 0:03:02]} 11... Bg4 {[%clk 0:02:27.4]} 12. d5 {[%clk 0:02:55.4]} 12...
Ne7 {[%clk 0:02:17.4]} 13. Ng3 {[%clk 0:02:55.8]} 13... f5 {[%clk 0:02:13.9]}
14. Bd2 {[%clk 0:02:45.2]} 14... fxe4 {[%clk 0:02:11.7]} 15. Ncxe4 {[%clk
0:02:45.8]} 15... Nf5 {[%clk 0:02:08]} 16. Nxh5 {[%clk 0:02:34.2]} 16... Bxh5
{[%clk 0:02:00.6]} 17. Bc3 {[%clk 0:02:31]} 17... Rae8 {[%clk 0:01:56.2]} 18.
Rae1 {[%clk 0:02:30.2]} 18... Re7 {[%clk 0:01:47.2]} 19. Bxg7 {[%clk 0:02:29.7]}
19... Nxg7 {[%clk 0:01:39.6]} 20. Qg3 {[%clk 0:02:25.3]} 20... Qxg3 {[%clk
0:01:30.1]} 21. hxg3 {[%clk 0:02:27.2]} 21... Nf5 {[%clk 0:01:29.9]} 22. Bh3
{[%clk 0:02:19.6]} 22... Rxe4 {[%clk 0:01:28.2]} 23. Rxe4 {[%clk 0:02:18.6]}
23... Nxg3 {[%clk 0:01:28.5]} 24. Re7 {[%clk 0:02:12.3]} 24... Nxf1 {[%clk
0:01:29.2]} 25. Bxf1 {[%clk 0:02:07.5]} 25... Rf7 {[%clk 0:01:27.8]} 26. Re8+
{[%clk 0:02:07.6]} 26... Kg7 {[%clk 0:01:27.3]} 27. b4 {[%clk 0:01:54.8]} 27...
g5 {[%clk 0:01:11.4]} 28. c5 {[%clk 0:01:38.8]} 28... Rxf4 {[%clk 0:01:02.6]}
29. Re7+ {[%clk 0:01:39.4]} 29... Rf7 {[%clk 0:01:02.7]} 30. Re6 {[%clk
0:01:40.4]} 30... Bf3 {[%clk 0:00:55.2]} 31. cxd6 {[%clk 0:01:34.8]} 31... Bxd5
{[%clk 0:00:54.7]} 32. Re5 {[%clk 0:01:36]} 32... Bxa2 {[%clk 0:00:53.7]} 33.
Rxg5+ {[%clk 0:01:33.8]} 33... Kf6 {[%clk 0:00:52.1]} 34. Ra5 {[%clk 0:01:32.5]}
34... Be6 {[%clk 0:00:49.7]} 35. dxc7 {[%clk 0:01:27.6]} 35... Rxc7 {[%clk
0:00:51.6]} 36. Rxa7 {[%clk 0:01:29.1]} 36... Bd5 {[%clk 0:00:49.3]} 37. b5
{[%clk 0:01:28.6]} 37... Rc2 {[%clk 0:00:46.4]} 38. Ra8 {[%clk 0:01:26.7]} 38...
h5 {[%clk 0:00:43.8]} 39. Rd8 {[%clk 0:01:27]} 39... Be4 {[%clk 0:00:42.2]} 40.
Re8 {[%clk 0:01:27.3]} 40... Kf5 {[%clk 0:00:32.5]} 41. Rf8+ {[%clk 0:01:24.4]}
41... Kg4 {[%clk 0:00:30.5]} 42. Rg8+ {[%clk 0:01:17]} 42... Kf4 {[%clk
0:00:28.2]} 43. Rf8+ {[%clk 0:01:17.2]} 43... Ke3 {[%clk 0:00:26.9]} 44. Rh8
{[%clk 0:01:14.6]} 44... Bf3 {[%clk 0:00:26.2]} 45. Re8+ {[%clk 0:01:14.8]}
45... Kf4 {[%clk 0:00:26.1]} 46. Rf8+ {[%clk 0:01:16]} 46... Kg3 {[%clk
0:00:26.9]} 47. Rg8+ {[%clk 0:01:16.9]} 47... Bg4 {[%clk 0:00:27.5]} 48. Rg7
{[%clk 0:01:16.2]} 48... Rc1 {[%clk 0:00:22.2]} 49. Rxb7 {[%clk 0:01:08.1]}
49... Bh3 {[%clk 0:00:19.9]} 50. Rg7+ {[%clk 0:01:08.8]} 50... Kf4 {[%clk
0:00:17.8]} 51. Rf7+ {[%clk 0:01:09.9]} 51... Ke3 {[%clk 0:00:17.6]} 52. b6
{[%clk 0:01:09.1]} 52... Rb1 {[%clk 0:00:18.2]} 53. Re7+ {[%clk 0:01:05.2]}
53... Kd4 {[%clk 0:00:18.7]} 54. b7 {[%clk 0:00:55.3]} 54... Rxf1+ {[%clk
0:00:16.2]} 55. Kh2 {[%clk 0:00:56.3]} 55... Rb1 {[%clk 0:00:11.5]} 56. Kxh3
{[%clk 0:00:56.9]} 56... Kd5 {[%clk 0:00:13]} 57. Rc7 {[%clk 0:00:52.9]} 57...
Kd6 {[%clk 0:00:13.3]} 58. Rc1 {[%clk 0:00:53.8]} 58... Rxb7 {[%clk 0:00:13.4]}
59. Kh4 {[%clk 0:00:54.8]} 59... Rb5 {[%clk 0:00:14.2]} 60. Re1 {[%clk
0:00:55.8]} 60... Rf5 {[%clk 0:00:13.4]} 61. Re8 {[%clk 0:00:56.1]} 61... Kd7
{[%clk 0:00:14.4]} 62. Rh8 {[%clk 0:00:57.7]} 62... Ke6 {[%clk 0:00:15.6]} 63.
Rxh5 {[%clk 0:00:59.6]} 63... Rf4+ {[%clk 0:00:16.5]} 64. Kg3 {[%clk 0:00:59.8]}
64... Rf5 {[%clk 0:00:17.2]} 65. Rxf5 {[%clk 0:01:00.8]} 65... Kxf5 {[%clk
0:00:19.1]} 1/2-1/2

[Event "*** Titled Tuesday Blitz"]
[Site "Chess.com"]
[Date "2018.11.06"]
[Round "2"]
[White "MatyChess1"]
[Black "enriquetejedor"]
[Result "0-1"]
[WhiteElo "2506"]
[BlackElo "2454"]
[TimeControl "180+2"]
[EndTime "13:23:08 PST"]
[Termination "enriquetejedor won by resignation"]

1. d4 {[%clk 0:03:01.9]} 1... d5 {[%clk 0:03:00.8]} 2. Nf3 {[%clk 0:03:02.8]}
2... Nf6 {[%clk 0:02:56.2]} 3. Bf4 {[%clk 0:03:03.3]} 3... c5 {[%clk 0:02:55.4]}
4. e3 {[%clk 0:03:03.4]} 4... Nc6 {[%clk 0:02:53.7]} 5. Nbd2 {[%clk 0:02:58.4]}
5... cxd4 {[%clk 0:02:52.3]} 6. exd4 {[%clk 0:02:59.2]} 6... Bf5 {[%clk
0:02:53]} 7. c3 {[%clk 0:02:48.3]} 7... e6 {[%clk 0:02:51.3]} 8. Qb3 {[%clk
0:02:49.1]} 8... Qc8 {[%clk 0:02:45.6]} 9. Nh4 {[%clk 0:02:45.6]} 9... Bg6
{[%clk 0:02:43.4]} 10. h3 {[%clk 0:02:21.3]} 10... Be7 {[%clk 0:02:41.1]} 11.
Nxg6 {[%clk 0:02:20.9]} 11... hxg6 {[%clk 0:02:39.2]} 12. Bd3 {[%clk 0:02:22.8]}
12... O-O {[%clk 0:02:27.7]} 13. O-O {[%clk 0:02:22.7]} 13... Qd7 {[%clk
0:02:21.4]} 14. Nf3 {[%clk 0:02:17.5]} 14... Bd6 {[%clk 0:02:16.4]} 15. Ne5
{[%clk 0:02:16.6]} 15... Qc7 {[%clk 0:02:16.1]} 16. Rae1 {[%clk 0:02:15.6]}
16... Nd7 {[%clk 0:02:11]} 17. Nxd7 {[%clk 0:02:15.3]} 17... Qxd7 {[%clk
0:02:09.9]} 18. Be3 {[%clk 0:02:15]} 18... a6 {[%clk 0:02:10]} 19. a4 {[%clk
0:02:12.7]} 19... Na5 {[%clk 0:02:06.3]} 20. Qa2 {[%clk 0:02:12.7]} 20... b5
{[%clk 0:02:07]} 21. axb5 {[%clk 0:02:10.2]} 21... axb5 {[%clk 0:02:08.9]} 22.
Ra1 {[%clk 0:01:53.2]} 22... Qb7 {[%clk 0:02:08.8]} 23. Qb1 {[%clk 0:01:42.5]}
23... Nc4 {[%clk 0:02:02.9]} 24. Rxa8 {[%clk 0:01:42.1]} 24... Rxa8 {[%clk
0:01:59.8]} 25. Bc1 {[%clk 0:01:44]} 25... Be7 {[%clk 0:01:53.6]} 26. Qc2 {[%clk
0:01:32.9]} 26... Nd6 {[%clk 0:01:26.2]} 27. Bd2 {[%clk 0:01:30.3]} 27... b4
{[%clk 0:01:25.5]} 28. cxb4 {[%clk 0:01:29.9]} 28... Rc8 {[%clk 0:01:25.4]} 29.
Qb3 {[%clk 0:01:21.4]} 29... Nb5 {[%clk 0:01:14.6]} 30. Be3 {[%clk 0:01:17.3]}
30... Bf6 {[%clk 0:01:10.4]} 31. Qd1 {[%clk 0:00:30.5]} 31... Nxd4 {[%clk
0:01:08]} 32. Bxg6 {[%clk 0:00:29.5]} 32... Qxb4 {[%clk 0:01:08]} 33. Bb1 {[%clk
0:00:26.5]} 33... Qxb2 {[%clk 0:00:50.5]} 34. Qh5 {[%clk 0:00:27.5]} 34... Nc2
{[%clk 0:00:51.2]} 35. Rc1 {[%clk 0:00:20.4]} 35... Rc4 {[%clk 0:00:46.8]} 36.
Bf4 {[%clk 0:00:12.5]} 36... Rxf4 {[%clk 0:00:41]} 37. Rf1 {[%clk 0:00:13.6]}
37... Rf5 {[%clk 0:00:24.8]} 38. Qe2 {[%clk 0:00:13.6]} 38... Na3 {[%clk
0:00:16.1]} 39. Qxb2 {[%clk 0:00:13.3]} 39... Bxb2 {[%clk 0:00:18]} 40. Bxf5
{[%clk 0:00:15]} 40... exf5 {[%clk 0:00:19.6]} 41. Rd1 {[%clk 0:00:15]} 41... d4
{[%clk 0:00:20.9]} 42. Kf1 {[%clk 0:00:16.9]} 42... Bc3 {[%clk 0:00:21.6]} 43.
Ke2 {[%clk 0:00:17.7]} 43... g6 {[%clk 0:00:22.9]} 44. Kd3 {[%clk 0:00:18.9]}
44... Nb5 {[%clk 0:00:24.3]} 45. g4 {[%clk 0:00:20.1]} 45... fxg4 {[%clk
0:00:25.1]} 46. hxg4 {[%clk 0:00:22]} 46... Kg7 {[%clk 0:00:26.6]} 47. f4 {[%clk
0:00:23.3]} 47... Nd6 {[%clk 0:00:27.6]} 48. Rb1 {[%clk 0:00:23.5]} 48... Kf6
{[%clk 0:00:28.3]} 49. Rb6 {[%clk 0:00:24.2]} 49... Ke6 {[%clk 0:00:29.5]} 50.
Ra6 {[%clk 0:00:24]} 50... Kd5 {[%clk 0:00:28.9]} 51. Ra7 {[%clk 0:00:24.2]}
51... Ke6 {[%clk 0:00:27.6]} 52. Ra6 {[%clk 0:00:24.7]} 52... f6 {[%clk
0:00:29.2]} 53. Rb6 {[%clk 0:00:23.7]} 53... g5 {[%clk 0:00:28.8]} 54. fxg5
{[%clk 0:00:23.4]} 54... fxg5 {[%clk 0:00:30.7]} 55. Ra6 {[%clk 0:00:25]} 55...
Ke5 {[%clk 0:00:30.4]} 56. Rb6 {[%clk 0:00:21.5]} 56... Ne8 {[%clk 0:00:25.9]}
57. Rb1 {[%clk 0:00:08.9]} 57... Nf6 {[%clk 0:00:24.8]} 58. Rg1 {[%clk
0:00:08.3]} 58... Ba5 {[%clk 0:00:20.9]} 59. Rg2 {[%clk 0:00:08.4]} 59... Bd8
{[%clk 0:00:17.2]} 60. Rg1 {[%clk 0:00:05]} 60... Nd5 {[%clk 0:00:17.7]} 61.
Re1+ {[%clk 0:00:05.5]} 61... Ne3 {[%clk 0:00:18.8]} 62. Rf1 {[%clk 0:00:07]}
62... Nxf1 {[%clk 0:00:19.5]} 0-1